Cogmind - Beta 16.1 @@@ ROGUE MODE // 2026.03.30 @ 13:46:52 Player: EX-OCT Result: Destroyed by 6E-6H4(R) with Subdweller Beam Cannon Performance ------------- Evolutions (0) 0 Regions Visited (2) 400 Robots Destroyed (35) 175 Value Destroyed (874) 874 Prototype IDs (15) 300 Alien Tech Used (0) 0 Bonus (0) 0 TOTAL SCORE: 1749 Bonus ------- None Cogmind --------- Core Integrity 0/250 Matter 290/300 Energy 9/200 System Corruption 0% Temperature Cool (9) Movement Rolling (95) Location -10/Subcaves Parts ------- > --- POWER (1) -------- Subdweller Power Source > --- PROPULSION (2) --- Wheel Subdweller Monowheel > --- UTILITY (2) ------ (None) > --- WEAPON (2) ------- Beam Rifle Subdweller Laser > --- INVENTORY (5) ---- Meta Core High-capacity Storage Unit Autogun Mini Grenade Launcher Makeshift Spear Peak State ------------ > --- POWER ------------ (None) > --- PROPULSION ------- Wheel Subdweller Monowheel > --- UTILITY ---------- Scrap Shield > --- WEAPON ----------- Beam Rifle Subdweller Laser > --- INVENTORY -------- Meta Core High-capacity Storage Unit Autogun Autogun Mini Grenade Launcher [Rating: 13] Favorites ----------- Power Ion Engine Engine Ion Engine Propulsion Light Treads Treads Light Treads Wheel Subdweller Monowheel Utility Large Storage Unit Device Seismic Detector Storage Large Storage Unit Protection Light Armor Plating Weapon Autogun Energy Gun Beam Rifle Ballistic Gun Autogun Launcher Mini Grenade Launcher Special Weapon Mining Laser Build | -11 -10 -10 ------- Run | Yrd Mat Sub Slots Evolved . | . . . Power . | . . . Propulsion . | . . . Utility . | . . . Weapon . | . . . Parts Attached 25 | 7 9 9 Power 2 | 1 . 1 Engine 2 | 1 . 1 Core . | . . . Reactor . | . . . Propulsion 7 | 2 1 4 Treads 3 | 1 1 1 Leg . | . . . Wheel 4 | 1 . 3 Hover . | . . . Flight . | . . . Utility 6 | 2 2 2 Device 1 | 1 . . Storage 2 | 1 1 . Processor . | . . . Hackware . | . . . Protection 3 | . 1 2 Artifact . | . . . Weapon 10 | 2 6 2 Energy Gun 5 | 2 1 2 Energy Cannon . | . . . Ballistic Gun 2 | . 2 . Ballistic Cannon . | . . . Launcher 2 | . 2 . Special Weapon 1 | . 1 . Impact Weapon . | . . . Slashing Weapon . | . . . Piercing Weapon . | . . . Special Melee Weapon . | . . . Unidentified Prototypes . | . . . Parts Lost 9 | . . 9 Power . | . . . Propulsion 4 | . . 4 Utility 3 | . . 3 Weapon 2 | . . 2 Highest Loss Streak 2 | . . 2 To Critical Strikes . | . . . Average Backups 8 | 2 8 9 Power . | . 1 . Propulsion 1 | 1 1 1 Utility 1 | . 1 1 Weapon 4 | . 4 5 Tool/Special . | . . . Unused Backups 6 | . 2 4 Power 1 | . . 1 Propulsion 1 | . 1 . Utility 1 | . . 1 Weapon 2 | . 1 1 Tool/Special 1 | . . 1 Average Slot Usage (%) 93 | . 100 89 Engine 12 | . 14 11 Treads 15 | . 26 9 Wheel 11 | . 1 18 Device 4 | . 6 3 Storage 12 | . 14 11 Protection 5 | . 7 5 Energy Gun 14 | . . 23 Ballistic Gun 10 | . 25 . Special Weapon 2 | . . 4 Peak Build Rating 13 | 7 10 13 Average Rating 10 | 4 9 10 On Entrance 5 | . 7 9 Avg Prop Armor Cover (%) 9 | 16 12 8 Naked Turns . | . . . Heaviest Build 34 | 15 34 34 Greatest Support 40 | 16 40 40 Greatest Overweight (x) 2 | . 1 2 Average Overweight (x) . | . . . Largest Inventory Capacity 15 | 8 15 15 Average Capacity 13 | 7 13 13 Most Carried 14 | 4 10 14 Average Carried 9 | 3 8 10 Final Capacity 15 | 8 15 5 Final Carried 10 | 4 10 5 Class Distribution -------------------- 90% | Mutant 9% | Subdweller-Mutant Dominant Class ---------------- Mutant | -10/Materials Mutant | -10/Subcaves Resources | -11 -10 -10 ----------- Run | Yrd Mat Sub Matter Collected 808 | 270 316 222 Remotely . | . . . Salvage Created 1322 | 82 389 851 Parts 84 | 4 30 50 Haulers Intercepted 1 | . 1 . Recyclers Shooed . | . . . Parts Field Recycled . | . . . Retrieved Matter . | . . . Parts Self-Destructed 8 | . . 8 Prevented . | . . . Parts Restored . | . . . Kills | -11 -10 -10 ------- Run | Yrd Mat Sub Combat Hostiles Destroyed 26 | . 11 15 Guns 19 | . 5 14 AOE 7 | . 6 1 Classes Destroyed 10 | 2 6 2 Builder 1 | . 1 . Tunneler 1 | 1 . . Hauler 1 | . 1 . Recycler 2 | 1 1 . Operator 1 | . 1 . Watcher 3 | . 3 . Swarmer 9 | . 9 . Grunt 4 | . 2 2 Sentry 1 | . . 1 Subdweller 12 | . . 12 Best Kill Streak 4 | 1 4 4 Combat Bots Only 4 | . 3 4 Max Kills in Single Turn 3 | 1 3 1 Gunslinging 1 | . 1 . Exploded 3 | . 3 1 Melee . | . . . Uniques/NPCs Destroyed . | . . . Combat | -11 -10 -10 -------- Run | Yrd Mat Sub Hostile Shots Fired 135 | . 37 98 Missed 42 | . 10 32 Hits 93 | . 27 66 Projectile 93 | . 27 66 Damage Taken 1490 | . 251 1239 Core 261 | . 52 209 Absorbed by Shields . | . . . Core Remaining (%) 100 | 100 . . Volleys Fired 176 | 9 32 135 Largest 2 | 2 2 2 Hottest 116 | 90 100 116 Shots Fired 290 | 14 54 222 Gun 236 | 14 44 178 Cannon . | . . . Launcher 8 | . 8 . Special 46 | . 2 44 Kinetic 40 | . 40 . Thermal 206 | 9 4 193 Explosive 8 | . 8 . Electromagnetic 36 | 5 2 29 Robot Hit Streak 27 | 5 6 27 Robot Miss Streak 4 | 3 3 4 Penetration Max . | . . . Secondary Targets 2 | . 1 1 Max Gunslinging Chain 1 | . 1 1 Shots Hit Robots 179 | 8 26 145 Core Hits 58 | 3 19 36 Critical Kills . | . . . Critical Parts Destroyed . | . . . Critical Strikes 10 | 1 . 9 Burn 10 | 1 . 9 Melee Attacks . | . . . Impact . | . . . Slashing . | . . . Piercing . | . . . Sneak Attacks . | . . . Combat Hostiles . | . . . Follow-up Attacks . | . . . Damage Inflicted 3013 | 113 777 2123 Guns 2521 | 113 419 1989 Cannons . | . . . Explosions 487 | . 353 134 Melee . | . . . Ramming 5 | . 5 . Kinetic 373 | . 373 . Thermal 1951 | 62 12 1877 Explosive 353 | . 353 . Electromagnetic 331 | 51 34 246 Impact . | . . . Slashing . | . . . Piercing . | . . . Highest Corruption . | . . . Average Corruption . | . . . Corruption Purged . | . . . Corruption Blocked . | . . . Overload Shots . | . . . Overflow Damage . | . . . Projectiles . | . . . Explosions . | . . . Melee . | . . . Knockbacks . | . . . Impact . | . . . Kinetic . | . . . Secondary . | . . . Self-Inflicted Damage 26 | . 26 . Shots 2 | . 2 . Rammed 2 | . 2 . Targets Rammed 2 | . 2 . Kicked . | . . . Crushed . | . . . Highest Temperature 100 | 100 64 31 Average Temperature 21 | 54 16 11 Received Heat Transfer 282 | . 12 270 Siege Activations . | . . . Martial Activations . | . . . Shielding Activations . | . . . Robots Disrupted . | . . . Combat Hostiles . | . . . Robots Corrupted . | . . . Combat Hostiles . | . . . Parts Fried 1 | . . 1 Impact Corruptions . | . . . Robots Melted . | . . . Combat Hostiles . | . . . Parts Melted 7 | . . 7 Heat Transferred 5053 | 259 37 4757 Parts Sabotaged . | . . . Parts Stolen . | . . . Parts Stripped . | . . . Power Chain Reactions 2 | . . 2 Alert | -11 -10 -10 ------- Run | Yrd Mat Sub Maximum Alert Level . | . . . Low Security (%) 100 | 100 100 . Level 1 . | . . . Level 2 . | . . . Level 3 . | . . . Level 4 . | . . . Level 5 . | . . . High Security . | . . . Max Security . | . . . Peak Influence 165 | 5 165 . Initial 3 | . 3 . Average 61 | . 65 . Influence Increases 531 | 10 436 85 Destroy 0b10 Robot/C 280 | . 220 60 Destroy 0b10 Robot/NC 45 | 10 35 . Destroy Leader 48 | . 38 10 Successful Hack 15 | . 15 . Select Force Hacks 30 | . 30 . Disable Machine 30 | . 30 . Destroy Structure 68 | . 68 . Lose Combat Pursuer 15 | . . 15 Influence Decreases 531 | 5 432 94 Entered New Map 7 | . 2 5 Time Decay 493 | 5 430 58 Lost Part 31 | . . 31 Squads Dispatched 1 | . 1 . Investigation 1 | . 1 . Extermination . | . . . Reinforcement . | . . . Assault . | . . . Garrison . | . . . Intercept . | . . . Searches Triggered . | . . . Construction Impeded . | . . . Haulers Reinforced . | . . . Active Scanning Responses . | . . . Cargo Convoy Interrupts . | . . . Stealth | -11 -10 -10 --------- Run | Yrd Mat Sub Distress Signals . | . . . Communications Jammed . | . . . Distress Signals . | . . . Times Spotted 34 | . 16 18 Peak Tracking Total 3 | . 3 3 Tactical Retreats 1 | . . 1 Traps | -11 -10 -10 ------- Run | Yrd Mat Sub Traps Triggered . | . . . Indirectly . | . . . Trap Hack Attempts . | . . . Triggered . | . . . Disarmed 6 | . 6 . Reprogrammed . | . . . Reused . | . . . Traps Extracted . | . . . Installed . | . . . Triggered . | . . . Most Traps Carried 2 | . . 2 Machines | -11 -10 -10 ---------- Run | Yrd Mat Sub Machines Disabled 6 | . 5 1 Max in Single Turn 3 | . 3 1 Machines Repaired . | . . . Machines Dismantled . | . . . Machines Sabotaged . | . . . Overloaded Fab Kills . | . . . Hacking | -11 -10 -10 --------- Run | Yrd Mat Sub Machines Accessed 10 | . 9 1 Terminals 8 | . 8 . Fabricators . | . . . Repair Stations . | . . . Recycling Units 1 | . 1 . Scanalyzers . | . . . Garrison Access . | . . . Total Hacks 33 | . 32 1 Successful 15 | . 14 1 Failed 17 | . 17 . Catastrophic 3 | . 3 . Database Lockouts 1 | . 1 . Manual 21 | . 21 . Terminals 31 | . 31 . Fabricators . | . . . Repair Stations . | . . . Recycling Units 1 | . 1 . Scanalyzers . | . . . Garrison Access . | . . . Terminal Hacks 6 | . 5 1 Robot Analysis 1 | . 1 . Prototype ID Bank 1 | . 1 . Locate Traps 1 | . 1 . Disarm Traps 1 | . 1 . Zone Layout 1 | . 1 . Proto ID Catalog 1 | . . 1 Fabricator Hacks . | . . . Repair Station Hacks . | . . . Recycling Unit Hacks . | . . . Scanalyzer . | . . . Garrison Access Hacks . | . . . Unauthorized Hacks 9 | . 9 . Terminals 8 | . 8 . Track 1 | . 1 . Botnet 2 | . 2 . Skim 5 | . 5 . Fabricators . | . . . Repair Stations . | . . . Recycling Units 1 | . 1 . Tunnel 1 | . 1 . Scanalyzers . | . . . Garrison Access . | . . . Data Cores Recovered 1 | . 1 . Used . | . . . Hacking Detections 6 | . 6 . Full Trace Events . | . . . Feedback Events . | . . . Feedback Blocked . | . . . Robot Schematics Acquired . | . . . Robots Built . | . . . Authchips . | . . . Time . | . . . Total Robot Build Rating . | . . . Part Schematics Acquired . | . . . Parts Built . | . . . Authchips . | . . . Time . | . . . Total Part Build Rating . | . . . Part Studies Acquired . | . . . Parts Repaired . | . . . Time . | . . . Parts Recycled . | . . . Recycled Matter . | . . . Retrieved Matter . | . . . Retrieved Components . | . . . Parts Scanalyzed . | . . . Part Schematics Acquired . | . . . Parts Damaged . | . . . Bothacking | -11 -10 -10 ------------ Run | Yrd Mat Sub Used RIF Installer . | . . . Robots Hacked . | . . . Non-combat . | . . . Combat . | . . . Robot Hacks Applied . | . . . Relay Couplers Released . | . . . Fabnet Peak Effective % . | . . . Robots Rewired . | . . . Allies Hacked . | . . . Hacks Repelled . | . . . Allies | -11 -10 -10 -------- Run | Yrd Mat Sub Total Allies . | . . . Largest Group . | . . . Highest-Rated Group . | . . . Highest-Rated Ally . | . . . Total Orders . | . . . Ally Attacks . | . . . Total Damage . | . . . Kills . | . . . Allies Corrupted . | . . . Allies Melted . | . . . Intel | -11 -10 -10 ------- Run | Yrd Mat Sub Active Infowar (turns) 1025 | 9 547 469 Seismic 1025 | 9 547 469 Robot Analysis Total 1 | . 1 . Derelict Logs Recovered 1 | . . 1 Drone Launches . | . . . Drone Recoveries . | . . . Exploration | -11 -10 -10 ------------- Run | Yrd Mat Sub Turns Passed 2952 | 79 1142 1731 Spaces Moved 1693 | 46 618 1029 Core 9 | 9 . . Treads 591 | . 505 86 Legs . | . . . Wheels 1093 | 37 113 943 Hover . | . . . Flight . | . . . Fastest Speed 50 | 50 100 95 Average Speed 129 | 90 151 117 Slowest Speed 240 | 100 160 240 Overloaded Moves . | . . . Propulsion Burnouts . | . . . Robots Hopped . | . . . Potential Cave-ins . | . . . Cave-ins Triggered . | . . . Exploration Rate (%) 60 | 3 97 80 Regions Visited 2 Branch Regions 1 Pre-discovered Areas 4 | . 3 1 Known Exits Taken 1 | . 1 . Unknown Exits Taken 1 | 1 . . Scrap Searched 4 | . . 4 Spaces Dug 30 | . 30 . Terrain Destroyed 77 | . 70 7 Melee . | . . . Projectile 2 | . 2 . AOE 75 | . 68 7 Terrain Rammed . | . . . Walls Destroyed . | . . . Machines Disabled . | . . . Actions | -11 -10 -10 --------- Run | Yrd Mat Sub Total 2076 | 65 771 1240 Wait 129 | . 93 36 Move 1691 | 45 617 1029 Hop . | . . . Pick Up 19 | 4 8 7 Fast Attach 11 | 7 1 3 Attach 6 | . . 6 Detach 1 | . 1 . Swap 25 | . 13 12 Drop 14 | . 4 10 Fire 176 | 9 32 135 Melee . | . . . Ram . | . . . Kick . | . . . Crush 2 | . 2 . Escape Stasis . | . . . Rewire . | . . . Trap . | . . . Miscellaneous 2 | . . 2 Route ------- -11/Scrapyard -10/Materials (discovered 5 exits: *Mat x3 / [*Min] / *Sub) -10/Subcaves (discovered 2 exits: *Mat x2) History --------- Turn | Location | Event 8 | -11/Scrapyard | Discovered new exit (range 14) 80 | -11/Scrapyard | Entered Materials 297 | -10/Materials | Discovered new exit (range 10) 310 | -10/Materials | Build established: Mutant 417 | -10/Materials | Discovered new exit (range 16) 607 | -10/Materials | Central database locked down 717 | -10/Materials | Discovered new exit (range 15) 725 | -10/Materials | Identified exit to Subcaves 725 | -10/Materials | Identified exit to Materials 761 | -10/Materials | Learned location of Mines (-10) 787 | -10/Materials | Learned Storage stockpile data 807 | -10/Materials | Learned location of 1 exit from Recycling 809 | -10/Materials | Learned location of 1 exit from Storage 822 | -10/Materials | Loaded intel: 2 recycling unit locations 1222 | -10/Materials | Entered Subcaves 1223 | -10/Subcaves | Approached by a straggling Scientist 1223 | -10/Subcaves | Identified exit to Materials 1248 | -10/Subcaves | Ambushed by Subdwellers from Twisted Machinery 1321 | -10/Subcaves | Learned location of Zion (-6) 1321 | -10/Subcaves | Met a Zionite searching for "candidates" 1324 | -10/Subcaves | A swath of the cavern ceiling suddenly collapsed 1572 | -10/Subcaves | Core integrity fell below 50% 1657 | -10/Subcaves | Visited 4L-MR0's lab 1672 | -10/Subcaves | Found Meta Core 2027 | -10/Subcaves | Shifting Twisted Machinery released Battle Cannon 2028 | -10/Subcaves | Shifting Twisted Machinery released Piercing Trap 2398 | -10/Subcaves | Learned Materials emergency access door positions 2667 | -10/Subcaves | Disturbed a concealed Subdweller 2671 | -10/Subcaves | Disturbed a concealed Subdweller 2891 | -10/Subcaves | Shifting Twisted Machinery released Sub. Optics 2897 | -10/Subcaves | Shifting Twisted Machinery released Sub. Laser 2929 | -10/Subcaves | Shifting Twisted Machinery released Sub. Beam Cannon 2934 | -10/Subcaves | Ambushed by Subdwellers from Twisted Machinery 2935 | -10/Subcaves | Core integrity fell below 20% 2953 | -10/Subcaves | Destroyed by 6E-6H4(R) with Subdweller Beam Cannon Last Messages --------------- Shield (+31). 02710_ Dropped Autogun. 02711_ Acquired Mak. Spear. 02844_ Sub. Optics melted. 02844_ Sub. Laser melted. 02844_ XL-PFG(R) destroyed. Sub. Optics falls loose from the Twisted Machinery. Sub. Laser falls loose from the Twisted Machinery. Sub. Beam Cannon falls loose from the Twisted Machinery. 02934_ 2I-KNX(R) emerges from the Twisted Machinery. 02938_ 2I-KNX(R) destroyed. 02938_ Switching to secondary target: 6E-6H4(R). 02944_ 6E-6H4(R) affixes Scrap Shield Fragment to Scrap Shield. 02951_ Scrap Shield destroyed. 02953_ Acquired Sub. Power Source. Map ----- +----------------------------------------------------+ | ?????????????????????????????????????????????????? | | ?????????????????????????????????????????????????? | | ?????????????????????????????????????????????????? | | ?????????????????????????????????????????????????? | | ?????????????????????????????????????????????????? | | ?????????????????????????????????????????????????? | | ?????????????????????????????????????????????????? | | ?????????????????????????????????????????????????? | | ?????????????????????????????????????????????????? | | ?????????????????????????????????????????????????? | | ?????????????????????????????????????????????????? | | ?????????????????????????????????????????????????? | | ?????????????????????????????????????????????????? | | ?????????????????????????????????????????????????? | | ????????????????????######???????????????????????? | | ?????????????????####" #???????????????????????? | | ?????????????????# " #???????????????????????? | | ??????????????#### " ###??????????????????#### | | ?????????????##" " ##???###??????????## | | ????????????## " ##### ###??####### | | ????????????# "" #### | | ???????????# " ## | | ???????????" " ## ### ## | | ????????????"" "] ####?### ### | | ????????????"""" " R ###??????############# | | ??????????????#""" "%@ #???????????????????# | | ????????????????#""""" "[= #?????????????????# | | ????????????????##"" """ #???????????????? | | ?????????????????# #### #?????????????? | | ????????????????# #???# #?????????????# | | ?????????????????## #????" ##?????????????# | | ??????????????????##?????#"" ?????????????? | | ??????????????????????????"""?????????????? | | ??????????????????????????#"" ??????????????? | | ???????????????????????????#""????????????????? | | ?????????????????????????????#"????????????????? | | ?????????????????????????????????????????????????? | | ?????????????????????????????????????????????????? | | ?????????????????????????????????????????????????? | | ?????????????????????????????????????????????????? | | ?????????????????????????????????????????????????? | | ?????????????????????????????????????????????????? | | ?????????????????????????????????????????????????? | | ?????????????????????????????????????????????????? | | ?????????????????????????????????????????????????? | | ?????????????????????????????????????????????????? | | ?????????????????????????????????????????????????? | | ?????????????????????????????????????????????????? | | ?????????????????????????????????????????????????? | | ?????????????????????????????????????????????????? | +----------------------------------------------------+ Best States ------------- Heat Dissipation 25 Energy Generation 10 Energy Capacity 250 Matter Stores 300 Matter Capacity 300 Sight Range 16 Terrain Scan Density 10 Armor Coverage 800 Evasion (%) 50 Recoil Reduction 2 Item Schematics ----------------- None Robot Schematics ------------------ None Fabricated ------------ Nothing Repaired ---------- Nothing Studied --------- None Alien Tech Used ----------------- None Achievements -------------- None Challenges ------------ None Game ------ Seed AlertAluminumArchive Manual? 0 Play Time 00:23:04 Cumulative 305.1 hours Start 2026.03.30 @ 13:25:17 End 2026.03.30 @ 13:46:52 Sessions 1 Manual Loads 0 Difficulty Rogue Special Mode None Game No. 151 Rogue 151 Adventurer 0 Explorer 0 Win Type - Total 19 Types 7/0/5/1/4/1/0/0/0/1 Lore% 87 Gallery% 74 Achievement% 87 Wizard Run 0 Options --------- Layout 1 ASCII 0 Keyboard 0 Movement Numpad Keybinds 0 Fullscreen 1 Font 24/Smallcaps Map View 50x35 Zoom Use 0% Tactical HUD 1 Map Filters NONE Filters NONE Steam 1 RUN: 04abf7fc-0893-406e-86cf-ca694910bba3